[Event "Late-Titled-Tuesday-Blitz-March-12-2024"]
[Site "Chess.com"]
[Date "2024.03.12"]
[Round "6"]
[White "KNVB"]
[Black "Boundless_Strike"]
[Result "1/2-1/2"]
[WhiteElo "2772"]
[BlackElo "2607"]
[TimeControl "180+1"]
[EndTime "15:09:16 PDT"]
[Termination "Game drawn by repetition"]

1. e4 {[%clk 0:02:54.8]} 1... d6 {[%clk 0:02:59.3]} 2. Nf3 {[%clk 0:02:52]} 2...
e5 {[%clk 0:02:59.6]} 3. d4 {[%clk 0:02:51.9]} 3... Bg4 {[%clk 0:03:00]} 4. dxe5
{[%clk 0:02:49.8]} 4... Nc6 {[%clk 0:03:00.4]} 5. Bb5 {[%clk 0:02:47.9]} 5...
Qd7 {[%clk 0:02:59.9]} 6. Nc3 {[%clk 0:02:39.4]} 6... O-O-O {[%clk 0:02:59.5]}
7. Bg5 {[%clk 0:02:39]} 7... Be7 {[%clk 0:02:54.5]} 8. Bxe7 {[%clk 0:02:31.8]}
8... Ngxe7 {[%clk 0:02:55.4]} 9. exd6 {[%clk 0:02:31.8]} 9... Qe8 {[%clk
0:02:39.4]} 10. Qe2 {[%clk 0:01:26.3]} 10... Rxd6 {[%clk 0:02:35.6]} 11. Qe3
{[%clk 0:01:20.5]} 11... a6 {[%clk 0:02:26.3]} 12. Bxc6 {[%clk 0:01:20]} 12...
Nxc6 {[%clk 0:02:19]} 13. O-O {[%clk 0:01:20.4]} 13... h5 {[%clk 0:02:18.8]} 14.
Rad1 {[%clk 0:00:48.3]} 14... Rdh6 {[%clk 0:02:08.7]} 15. Rd2 {[%clk 0:00:27.4]}
15... g5 {[%clk 0:01:56.5]} 16. Nd5 {[%clk 0:00:23.2]} 16... Re6 {[%clk
0:01:45.4]} 17. Nxg5 {[%clk 0:00:19.4]} 17... Rg6 {[%clk 0:01:45.5]} 18. Qf4
{[%clk 0:00:17.7]} 18... Ne5 {[%clk 0:01:41.2]} 19. f3 {[%clk 0:00:07.6]} 19...
Bd7 {[%clk 0:01:29.7]} 20. Nf6 {[%clk 0:00:05]} 20... Qe7 {[%clk 0:01:28.8]} 21.
Nxd7 {[%clk 0:00:05.2]} 21... Nxd7 {[%clk 0:01:29.2]} 22. Qxf7 {[%clk
0:00:03.9]} 22... Qxg5 {[%clk 0:00:58]} 23. Qxd7+ {[%clk 0:00:04.1]} 23... Kb8
{[%clk 0:00:58.8]} 24. Rff2 {[%clk 0:00:04.2]} 24... Rhg8 {[%clk 0:00:59.2]} 25.
Kf1 {[%clk 0:00:01.7]} 25... h4 {[%clk 0:00:58.1]} 26. h3 {[%clk 0:00:02.2]}
26... Qg3 {[%clk 0:00:57.7]} 27. Qd4 {[%clk 0:00:01.8]} 27... Qh2 {[%clk
0:00:56.9]} 28. Rd1 {[%clk 0:00:01.5]} 28... Rxg2 {[%clk 0:00:55.7]} 29. Rxg2
{[%clk 0:00:01.5]} 29... Qxg2+ {[%clk 0:00:54.5]} 30. Ke1 {[%clk 0:00:01.4]}
30... Qxf3 {[%clk 0:00:55.2]} 31. Kd2 {[%clk 0:00:01.7]} 31... Qf4+ {[%clk
0:00:54.7]} 32. Kc3 {[%clk 0:00:02]} 32... Re8 {[%clk 0:00:39.3]} 33. e5 {[%clk
0:00:01.8]} 33... Qg5 {[%clk 0:00:31]} 34. Rd3 {[%clk 0:00:01.9]} 34... b6
{[%clk 0:00:30.1]} 35. b3 {[%clk 0:00:02.1]} 35... Rxe5 {[%clk 0:00:30.1]} 36.
Qd8+ {[%clk 0:00:02.3]} 36... Kb7 {[%clk 0:00:30.1]} 37. Qxg5 {[%clk 0:00:02.1]}
37... Rxg5 {[%clk 0:00:30]} 38. Rd4 {[%clk 0:00:02.4]} 38... Rg3+ {[%clk
0:00:30]} 39. Rd3 {[%clk 0:00:03.2]} 39... c5 {[%clk 0:00:30.6]} 40. Kd2 {[%clk
0:00:03.1]} 40... Rg2+ {[%clk 0:00:31]} 41. Kc3 {[%clk 0:00:03.2]} 41... Kc6
{[%clk 0:00:31.3]} 42. Rf3 {[%clk 0:00:03.4]} 42... Rg3 {[%clk 0:00:31.7]} 43.
Rd3 {[%clk 0:00:03.7]} 43... b5 {[%clk 0:00:31.7]} 44. Kd2 {[%clk 0:00:04.2]}
44... Rg2+ {[%clk 0:00:32.3]} 45. Kc1 {[%clk 0:00:02.8]} 45... b4 {[%clk
0:00:26.8]} 46. Re3 {[%clk 0:00:01.9]} 46... Rg3 {[%clk 0:00:26.6]} 47. Kd2
{[%clk 0:00:01.8]} 47... Rg2+ {[%clk 0:00:13.8]} 48. Re2 {[%clk 0:00:01.7]}
48... Rg3 {[%clk 0:00:12]} 49. Re3 {[%clk 0:00:02.3]} 49... Rg5 {[%clk
0:00:07.3]} 50. Re4 {[%clk 0:00:02.4]} 50... Rg2+ {[%clk 0:00:06.4]} 51. Kc1
{[%clk 0:00:02.8]} 51... Rh2 {[%clk 0:00:03.2]} 52. Rxh4 {[%clk 0:00:03.2]}
52... Kb5 {[%clk 0:00:03.8]} 53. Kb2 {[%clk 0:00:03.4]} 53... a5 {[%clk
0:00:04.4]} 54. Rh8 {[%clk 0:00:03.8]} 54... a4 {[%clk 0:00:04.9]} 55. Rb8+
{[%clk 0:00:03.9]} 55... Ka5 {[%clk 0:00:05.3]} 56. Ra8+ {[%clk 0:00:04.4]}
56... Kb5 {[%clk 0:00:06]} 57. Rxa4 {[%clk 0:00:05]} 57... Rxh3 {[%clk 0:00:06]}
58. Ra8 {[%clk 0:00:05.3]} 58... Rh2 {[%clk 0:00:06.2]} 59. Rb8+ {[%clk
0:00:05.8]} 59... Ka5 {[%clk 0:00:06.7]} 60. Ra8+ {[%clk 0:00:06.2]} 60... Kb5
{[%clk 0:00:07.2]} 61. Rb8+ {[%clk 0:00:05.8]} 61... Ka5 {[%clk 0:00:07.7]} 62.
Rd8 {[%clk 0:00:06.1]} 62... Kb5 {[%clk 0:00:08]} 63. Rd5 {[%clk 0:00:06.6]}
63... Kc6 {[%clk 0:00:08.3]} 64. Rf5 {[%clk 0:00:06.7]} 64... Kb5 {[%clk
0:00:08.9]} 65. Re5 {[%clk 0:00:06.8]} 65... Rd2 {[%clk 0:00:07.9]} 66. Kc1
{[%clk 0:00:06.6]} 66... Rh2 {[%clk 0:00:08.5]} 67. Kd1 {[%clk 0:00:06.9]} 67...
Rg2 {[%clk 0:00:08.6]} 68. Re2 {[%clk 0:00:06.6]} 68... Rg1+ {[%clk 0:00:09]}
69. Re1 {[%clk 0:00:06.5]} 69... Rg2 {[%clk 0:00:09.7]} 70. Kc1 {[%clk
0:00:05.7]} 70... Rh2 {[%clk 0:00:09.8]} 71. Rd1 {[%clk 0:00:05.7]} 71... Rg2
{[%clk 0:00:10.4]} 72. Rd2 {[%clk 0:00:05.8]} 72... Rg1+ {[%clk 0:00:11]} 73.
Kb2 {[%clk 0:00:06.4]} 73... Rg3 {[%clk 0:00:11.8]} 74. Rf2 {[%clk 0:00:04.6]}
74... Rh3 {[%clk 0:00:12.1]} 75. Rg2 {[%clk 0:00:04.4]} 75... Rf3 {[%clk
0:00:12.2]} 76. Rh2 {[%clk 0:00:04.3]} 76... Rg3 {[%clk 0:00:12.5]} 77. a4+
{[%clk 0:00:03.6]} 77... bxa3+ {[%clk 0:00:12.6]} 78. Kxa3 {[%clk 0:00:04.2]}
78... Rf3 {[%clk 0:00:13.2]} 79. c4+ {[%clk 0:00:02.3]} 79... Kc6 {[%clk
0:00:13.3]} 80. Rh6+ {[%clk 0:00:01.7]} 80... Kb7 {[%clk 0:00:13.6]} 81. Ka4
{[%clk 0:00:02.1]} 81... Rg3 {[%clk 0:00:13.5]} 82. Rf6 {[%clk 0:00:01.8]} 82...
Rh3 {[%clk 0:00:13.5]} 83. Rf7+ {[%clk 0:00:01.8]} 83... Kb6 {[%clk 0:00:13.6]}
84. Rf6+ {[%clk 0:00:01.4]} 84... Kb7 {[%clk 0:00:13.9]} 85. Rg6 {[%clk
0:00:02.1]} 85... Kc7 {[%clk 0:00:13.9]} 86. Rg7+ {[%clk 0:00:02]} 86... Kc6
{[%clk 0:00:14.3]} 87. Rg6+ {[%clk 0:00:02.9]} 87... Kb7 {[%clk 0:00:14.8]} 88.
Rg5 {[%clk 0:00:03.1]} 88... Kb6 {[%clk 0:00:15]} 89. Rg1 {[%clk 0:00:03.8]}
89... Rh6 {[%clk 0:00:13.5]} 90. Rg5 {[%clk 0:00:02.9]} 90... Rh3 {[%clk
0:00:13.6]} 91. Rd5 {[%clk 0:00:03.7]} 91... Kc6 {[%clk 0:00:13.9]} 92. Rd2
{[%clk 0:00:03.9]} 92... Rh8 {[%clk 0:00:14]} 93. Ka3 {[%clk 0:00:03.9]} 93...
Ra8+ {[%clk 0:00:14.3]} 94. Kb2 {[%clk 0:00:04.6]} 94... Rh8 {[%clk 0:00:15]}
95. Rg2 {[%clk 0:00:05]} 95... Rh3 {[%clk 0:00:15.5]} 96. Rg6+ {[%clk
0:00:04.9]} 96... Kb7 {[%clk 0:00:16]} 97. Re6 {[%clk 0:00:05.1]} 97... Kc7
{[%clk 0:00:16.3]} 98. Ka3 {[%clk 0:00:04.8]} 98... Kb7 {[%clk 0:00:16.2]} 99.
Ka4 {[%clk 0:00:04.8]} 99... Kc7 {[%clk 0:00:16.7]} 100. Re1 {[%clk 0:00:04.8]}
100... Kc6 {[%clk 0:00:16.7]} 101. Rf1 {[%clk 0:00:04.9]} 101... Kb6 {[%clk
0:00:15.6]} 102. Rf6+ {[%clk 0:00:04.5]} 102... Kc7 {[%clk 0:00:16]} 103. Ra6
{[%clk 0:00:04.7]} 103... Kb7 {[%clk 0:00:15.7]} 104. Ra5 {[%clk 0:00:05.2]}
104... Kb6 {[%clk 0:00:15.9]} 105. Rb5+ {[%clk 0:00:05.2]} 105... Kc6 {[%clk
0:00:16.6]} 106. Ka5 {[%clk 0:00:04.6]} 106... Rh1 {[%clk 0:00:14.8]} 107. Rb6+
{[%clk 0:00:04.8]} 107... Kc7 {[%clk 0:00:15.2]} 108. Kb5 {[%clk 0:00:04.5]}
108... Rh3 {[%clk 0:00:14.3]} 109. Rc6+ {[%clk 0:00:03.2]} 109... Kb7 {[%clk
0:00:14.7]} 110. Rb6+ {[%clk 0:00:03.3]} 110... Kc7 {[%clk 0:00:15.2]} 111. Ka5
{[%clk 0:00:03.2]} 111... Rg3 {[%clk 0:00:14.1]} 112. Rf6 {[%clk 0:00:03]}
112... Rh3 {[%clk 0:00:13.3]} 113. Rb6 {[%clk 0:00:02]} 113... Rg3 {[%clk
0:00:12.9]} 114. Ka6 {[%clk 0:00:02.3]} 114... Rh3 {[%clk 0:00:11.8]} 115. Rb5
{[%clk 0:00:02.6]} 115... Kc6 {[%clk 0:00:11.8]} 116. Rb6+ {[%clk 0:00:01.5]}
116... Kc7 {[%clk 0:00:12.3]} 117. Rb7+ {[%clk 0:00:02]} 117... Kc6 {[%clk
0:00:12.7]} 118. Rb5 {[%clk 0:00:02.3]} 118... Rg3 {[%clk 0:00:11.5]} 119. Ka7
{[%clk 0:00:02.3]} 119... Rh3 {[%clk 0:00:11.1]} 120. Rb6+ {[%clk 0:00:02.3]}
120... Kc7 {[%clk 0:00:11.2]} 121. Rb7+ {[%clk 0:00:02.5]} 121... Kc6 {[%clk
0:00:11.6]} 122. Rb8 {[%clk 0:00:02]} 122... Kc7 {[%clk 0:00:11.3]} 123. Rb6
{[%clk 0:00:01.9]} 123... Rg3 {[%clk 0:00:11]} 124. Ka6 {[%clk 0:00:02.1]}
124... Rh3 {[%clk 0:00:11.4]} 1/2-1/2

[Event "Late-Titled-Tuesday-Blitz-March-12-2024"]
[Site "Chess.com"]
[Date "2024.03.12"]
[Round "7"]
[White "scrambleyourbrain"]
[Black "djano"]
[Result "0-1"]
[WhiteElo "2407"]
[BlackElo "2589"]
[TimeControl "180+1"]
[EndTime "15:11:45 PDT"]
[Termination "djano won by resignation"]

1. e4 {[%clk 0:03:00.9]} 1... c5 {[%clk 0:02:59.4]} 2. Nf3 {[%clk 0:03:00.1]}
2... Nc6 {[%clk 0:02:59.7]} 3. d4 {[%clk 0:03:00.7]} 3... cxd4 {[%clk
0:02:59.7]} 4. Nxd4 {[%clk 0:03:01.6]} 4... g6 {[%clk 0:02:59.9]} 5. c4 {[%clk
0:03:01]} 5... e5 {[%clk 0:03:00.1]} 6. Nb5 {[%clk 0:02:58]} 6... d6 {[%clk
0:03:00.2]} 7. Be3 {[%clk 0:02:55]} 7... Nf6 {[%clk 0:02:57.8]} 8. f3 {[%clk
0:02:54.7]} 8... a6 {[%clk 0:02:52]} 9. N5c3 {[%clk 0:02:54.4]} 9... Bg7 {[%clk
0:02:52.4]} 10. Nd5 {[%clk 0:02:54.7]} 10... Nxd5 {[%clk 0:02:50.3]} 11. cxd5
{[%clk 0:02:54.5]} 11... Nd4 {[%clk 0:02:50.9]} 12. Nc3 {[%clk 0:02:52.7]} 12...
O-O {[%clk 0:02:51]} 13. Bd3 {[%clk 0:02:52.7]} 13... Qh4+ {[%clk 0:02:45.3]}
14. Bf2 {[%clk 0:02:49.6]} 14... Qg5 {[%clk 0:02:44.9]} 15. g3 {[%clk
0:02:39.2]} 15... Bh3 {[%clk 0:02:43.7]} 16. Bxd4 {[%clk 0:02:34.3]} 16... exd4
{[%clk 0:02:42.6]} 17. Ne2 {[%clk 0:02:34.8]} 17... Bg2 {[%clk 0:02:40.3]} 18.
Rg1 {[%clk 0:02:25.6]} 18... Bxf3 {[%clk 0:02:40.5]} 19. Qd2 {[%clk 0:02:25.8]}
19... Qe3 {[%clk 0:02:35.8]} 20. O-O-O {[%clk 0:02:15.2]} 20... Bh6 {[%clk
0:02:34.6]} 0-1

[Event "Late-Titled-Tuesday-Blitz-March-12-2024"]
[Site "Chess.com"]
[Date "2024.03.12"]
[Round "7"]
[White "IPAchess"]
[Black "santosalberto1987"]
[Result "1-0"]
[WhiteElo "2362"]
[BlackElo "2526"]
[TimeControl "180+1"]
[EndTime "15:11:46 PDT"]
[Termination "IPAchess won by resignation"]

1. d4 {[%clk 0:03:00.9]} 1... Nf6 {[%clk 0:02:54.9]} 2. c4 {[%clk 0:03:00.9]}
2... d6 {[%clk 0:02:55.1]} 3. Nf3 {[%clk 0:03:00.2]} 3... Bf5 {[%clk 0:02:52.1]}
4. Nc3 {[%clk 0:03:00.2]} 4... Ne4 {[%clk 0:02:45.6]} 5. Qb3 {[%clk 0:02:49.5]}
5... b6 {[%clk 0:02:43.6]} 6. g3 {[%clk 0:02:48.8]} 6... Nd7 {[%clk 0:02:38.2]}
7. Bg2 {[%clk 0:02:49.3]} 7... Nxc3 {[%clk 0:02:38.1]} 8. bxc3 {[%clk
0:02:48.8]} 8... Be4 {[%clk 0:02:37.9]} 9. O-O {[%clk 0:02:48.8]} 9... g6 {[%clk
0:02:37.5]} 10. a4 {[%clk 0:02:41.9]} 10... a5 {[%clk 0:02:35.2]} 11. c5 {[%clk
0:02:35.6]} 11... dxc5 {[%clk 0:02:33]} 12. Ng5 {[%clk 0:02:32.8]} 1-0

[Event "Late-Titled-Tuesday-Blitz-March-12-2024"]
[Site "Chess.com"]
[Date "2024.03.12"]
[Round "7"]
[White "agus_k"]
[Black "Incognizance"]
[Result "1-0"]
[WhiteElo "2576"]
[BlackElo "1838"]
[TimeControl "180+1"]
[EndTime "15:11:58 PDT"]
[Termination "agus_k won by resignation"]

1. e4 {[%clk 0:03:00.9]} 1... c5 {[%clk 0:02:57.2]} 2. Nf3 {[%clk 0:03:00.7]}
2... Nc6 {[%clk 0:02:57.3]} 3. d4 {[%clk 0:03:01.6]} 3... cxd4 {[%clk
0:02:57.4]} 4. Nxd4 {[%clk 0:03:02.5]} 4... e5 {[%clk 0:02:58.1]} 5. Nb5 {[%clk
0:03:02.4]} 5... d6 {[%clk 0:02:58.5]} 6. N1c3 {[%clk 0:03:02.2]} 6... a6 {[%clk
0:02:58.7]} 7. Na3 {[%clk 0:03:02.4]} 7... b5 {[%clk 0:02:59.4]} 8. Nd5 {[%clk
0:03:02.6]} 8... Nge7 {[%clk 0:03:00.1]} 9. c4 {[%clk 0:03:02.5]} 9... Nd4
{[%clk 0:02:59.2]} 10. Bd3 {[%clk 0:02:56.8]} 10... bxc4 {[%clk 0:02:43.7]} 11.
Nxc4 {[%clk 0:02:56.4]} 11... Nxd5 {[%clk 0:02:43.4]} 12. exd5 {[%clk 0:02:56]}
12... f5 {[%clk 0:02:41.6]} 13. f4 {[%clk 0:02:50.3]} 13... Be7 {[%clk
0:02:01.1]} 14. O-O {[%clk 0:02:49.4]} 14... O-O {[%clk 0:01:57]} 15. fxe5
{[%clk 0:02:49.5]} 15... dxe5 {[%clk 0:01:54.5]} 16. Nxe5 {[%clk 0:02:49.7]}
16... Qxd5 {[%clk 0:01:47.6]} 17. Bc4 {[%clk 0:02:49.3]} 1-0

[Event "Late-Titled-Tuesday-Blitz-March-12-2024"]
[Site "Chess.com"]
[Date "2024.03.12"]
[Round "7"]
[White "Englishman_18"]
[Black "SameerMujumdar"]
[Result "0-1"]
[WhiteElo "2268"]
[BlackElo "2527"]
[TimeControl "180+1"]
[EndTime "15:13:12 PDT"]
[Termination "SameerMujumdar won by checkmate"]

1. Nf3 {[%clk 0:03:00.1]} 1... Nf6 {[%clk 0:02:59]} 2. c4 {[%clk 0:02:59.4]}
2... c6 {[%clk 0:02:59.1]} 3. g3 {[%clk 0:02:58]} 3... d5 {[%clk 0:03:00]} 4.
Bg2 {[%clk 0:02:58.2]} 4... e6 {[%clk 0:03:00.6]} 5. b3 {[%clk 0:02:54.8]} 5...
Nbd7 {[%clk 0:03:00.9]} 6. d4 {[%clk 0:02:54.1]} 6... Bd6 {[%clk 0:03:01.3]} 7.
Bb2 {[%clk 0:02:33.3]} 7... Ne4 {[%clk 0:02:55.7]} 8. Nbd2 {[%clk 0:02:32.2]}
8... f5 {[%clk 0:02:55.6]} 9. O-O {[%clk 0:02:31.1]} 9... Qf6 {[%clk 0:02:52.2]}
10. Ne1 {[%clk 0:02:14.3]} 10... h5 {[%clk 0:02:33.1]} 11. Ndf3 {[%clk
0:02:09.1]} 11... h4 {[%clk 0:02:29.2]} 12. Nd3 {[%clk 0:02:03]} 12... hxg3
{[%clk 0:02:24.3]} 13. fxg3 {[%clk 0:01:40.8]} 13... Qh6 {[%clk 0:02:13.8]} 14.
Bc1 {[%clk 0:01:20.5]} 14... g5 {[%clk 0:02:07.5]} 15. h4 {[%clk 0:01:19.5]}
15... Bxg3 {[%clk 0:02:00.4]} 16. hxg5 {[%clk 0:01:15.3]} 16... Qh2+ {[%clk
0:01:48.8]} 17. Nxh2 {[%clk 0:01:14.9]} 17... Bxh2+ {[%clk 0:01:49.7]} 18. Kh1
{[%clk 0:01:15.3]} 18... Ng3# {[%clk 0:01:50.6]} 0-1

[Event "Late-Titled-Tuesday-Blitz-March-12-2024"]
[Site "Chess.com"]
[Date "2024.03.12"]
[Round "7"]
[White "Fh2411"]
[Black "ITheOnlyME"]
[Result "1-0"]
[WhiteElo "2656"]
[BlackElo "2417"]
[TimeControl "180+1"]
[EndTime "15:13:13 PDT"]
[Termination "Fh2411 won by resignation"]

1. d4 {[%clk 0:03:00.9]} 1... Nf6 {[%clk 0:02:59.8]} 2. Nf3 {[%clk 0:02:59.4]}
2... g6 {[%clk 0:03:00]} 3. Bf4 {[%clk 0:02:57.9]} 3... d5 {[%clk 0:02:58.3]} 4.
e3 {[%clk 0:02:57.7]} 4... Bg7 {[%clk 0:02:55.3]} 5. h3 {[%clk 0:02:58]} 5... c5
{[%clk 0:02:54]} 6. c3 {[%clk 0:02:56.9]} 6... Nc6 {[%clk 0:02:48.6]} 7. Nbd2
{[%clk 0:02:49.7]} 7... O-O {[%clk 0:02:47.8]} 8. dxc5 {[%clk 0:02:49.7]} 8...
a5 {[%clk 0:02:47.8]} 9. a4 {[%clk 0:02:49.4]} 9... Nd7 {[%clk 0:02:39.8]} 10.
Nb3 {[%clk 0:02:49.2]} 10... e5 {[%clk 0:02:31.2]} 11. Bg5 {[%clk 0:02:48.7]}
11... f6 {[%clk 0:02:30.6]} 12. Qxd5+ {[%clk 0:02:47.5]} 12... Kh8 {[%clk
0:02:30.4]} 13. Bh4 {[%clk 0:02:47.9]} 13... Ne7 {[%clk 0:02:27.4]} 14. Qc4
{[%clk 0:02:36.6]} 14... Nf5 {[%clk 0:02:19.5]} 15. Rd1 {[%clk 0:02:24.9]} 15...
Qc7 {[%clk 0:02:20]} 16. e4 {[%clk 0:02:17.7]} 16... Nxh4 {[%clk 0:02:19.4]} 17.
Nxh4 {[%clk 0:02:18.6]} 17... Re8 {[%clk 0:02:19.8]} 18. Qf7 {[%clk 0:02:05.6]}
18... Rf8 {[%clk 0:02:18.7]} 19. Qe7 {[%clk 0:02:06]} 19... f5 {[%clk
0:01:56.5]} 20. Nf3 {[%clk 0:01:39.2]} 20... fxe4 {[%clk 0:01:49.4]} 21. Ng5
{[%clk 0:01:39.2]} 21... h6 {[%clk 0:01:47.4]} 22. Ne6 {[%clk 0:01:38]} 1-0

[Event "Late-Titled-Tuesday-Blitz-March-12-2024"]
[Site "Chess.com"]
[Date "2024.03.12"]
[Round "7"]
[White "ploxoi"]
[Black "Gabcur"]
[Result "1-0"]
[WhiteElo "2412"]
[BlackElo "2287"]
[TimeControl "180+1"]
[EndTime "15:14:38 PDT"]
[Termination "ploxoi won by resignation"]

1. d4 {[%clk 0:03:00.9]} 1... d5 {[%clk 0:02:52.3]} 2. Nf3 {[%clk 0:02:59.7]}
2... Nf6 {[%clk 0:02:50.9]} 3. g3 {[%clk 0:03:00]} 3... Bg4 {[%clk 0:02:48.8]}
4. Bg2 {[%clk 0:02:59.3]} 4... Nbd7 {[%clk 0:02:47.8]} 5. O-O {[%clk 0:02:59.6]}
5... e6 {[%clk 0:02:46.8]} 6. c4 {[%clk 0:03:00.3]} 6... c6 {[%clk 0:02:46.8]}
7. Qb3 {[%clk 0:02:59.5]} 7... Qb6 {[%clk 0:02:46.1]} 8. Bf4 {[%clk 0:02:54.8]}
8... Qb4 {[%clk 0:02:09.1]} 9. Nbd2 {[%clk 0:02:43.1]} 9... Be7 {[%clk
0:02:04.7]} 10. c5 {[%clk 0:02:42.6]} 10... Qxb3 {[%clk 0:02:01.5]} 11. axb3
{[%clk 0:02:43.5]} 11... a6 {[%clk 0:02:01.2]} 12. b4 {[%clk 0:02:43.2]} 12...
Rc8 {[%clk 0:02:00.7]} 13. Nb3 {[%clk 0:02:37.9]} 13... Nh5 {[%clk 0:01:51]} 14.
Be3 {[%clk 0:02:36.6]} 14... Bf5 {[%clk 0:01:45.3]} 15. h3 {[%clk 0:02:28.9]}
15... Be4 {[%clk 0:01:33.8]} 16. Na5 {[%clk 0:02:22.8]} 16... O-O {[%clk
0:01:00]} 17. g4 {[%clk 0:02:18.7]} 17... Nhf6 {[%clk 0:00:59.3]} 18. Bf4 {[%clk
0:02:18.8]} 18... b6 {[%clk 0:00:52.1]} 19. Nb3 {[%clk 0:02:14.9]} 19... bxc5
{[%clk 0:00:44.7]} 20. bxc5 {[%clk 0:02:14.2]} 20... Ra8 {[%clk 0:00:44.5]} 21.
Ra5 {[%clk 0:02:12.3]} 21... Bd8 {[%clk 0:00:42.8]} 22. Ra3 {[%clk 0:02:09.9]}
22... a5 {[%clk 0:00:35.8]} 23. Rfa1 {[%clk 0:02:09.5]} 23... Ra7 {[%clk
0:00:19.9]} 24. Bd6 {[%clk 0:02:07.5]} 24... Re8 {[%clk 0:00:18.7]} 25. Nxa5
{[%clk 0:02:06.5]} 25... Bxa5 {[%clk 0:00:18.5]} 26. Rxa5 {[%clk 0:02:07.4]}
26... Rb7 {[%clk 0:00:18.8]} 27. R1a2 {[%clk 0:02:02.3]} 27... Nb8 {[%clk
0:00:17.7]} 28. Nd2 {[%clk 0:02:00.5]} 28... Bxg2 {[%clk 0:00:16.4]} 29. Kxg2
{[%clk 0:02:01.4]} 29... Rc8 {[%clk 0:00:15.6]} 30. Ra7 {[%clk 0:01:57.5]} 30...
Ne8 {[%clk 0:00:16.5]} 31. Rxb7 {[%clk 0:01:57.1]} 1-0

[Event "Late-Titled-Tuesday-Blitz-March-12-2024"]
[Site "Chess.com"]
[Date "2024.03.12"]
[Round "7"]
[White "Speed-O-Sonic"]
[Black "chessamical"]
[Result "1-0"]
[WhiteElo "2447"]
[BlackElo "2213"]
[TimeControl "180+1"]
[EndTime "15:14:48 PDT"]
[Termination "Speed-O-Sonic won on time"]

1. e4 {[%clk 0:03:00.9]} 1... e6 {[%clk 0:02:56.2]} 2. d4 {[%clk 0:03:00.3]}
2... d5 {[%clk 0:02:56.3]} 3. Bd3 {[%clk 0:03:00.5]} 3... dxe4 {[%clk
0:02:54.3]} 4. Bxe4 {[%clk 0:03:01.4]} 4... Nf6 {[%clk 0:02:54.2]} 5. Bf3 {[%clk
0:03:02]} 5... c5 {[%clk 0:02:50.6]} 6. Ne2 {[%clk 0:03:01.8]} 6... cxd4 {[%clk
0:02:45.3]} 7. Nxd4 {[%clk 0:03:01.7]} 7... Bc5 {[%clk 0:02:25.3]} 8. Be3 {[%clk
0:03:00.4]} 8... O-O {[%clk 0:01:45.8]} 9. Nc3 {[%clk 0:02:57.3]} 9... a6 {[%clk
0:01:45.1]} 10. Qd2 {[%clk 0:02:55.1]} 10... e5 {[%clk 0:01:24.2]} 11. Nb3
{[%clk 0:02:54.3]} 11... Bb4 {[%clk 0:01:24.3]} 12. O-O-O {[%clk 0:02:48.7]}
12... Qxd2+ {[%clk 0:01:22.8]} 13. Bxd2 {[%clk 0:02:47]} 13... Nc6 {[%clk
0:01:13.9]} 14. a3 {[%clk 0:02:44.7]} 14... Be7 {[%clk 0:00:58.4]} 15. Rhe1
{[%clk 0:02:43.7]} 15... Bg4 {[%clk 0:00:47.8]} 16. Bxg4 {[%clk 0:02:38.2]}
16... Nxg4 {[%clk 0:00:47.2]} 17. f3 {[%clk 0:02:39.1]} 17... Nf2 {[%clk
0:00:45.9]} 18. Nd5 {[%clk 0:02:29.3]} 18... Nxd1 {[%clk 0:00:45.3]} 19. Rxd1
{[%clk 0:02:24.9]} 19... Rad8 {[%clk 0:00:32.9]} 20. c4 {[%clk 0:02:22.9]} 20...
b5 {[%clk 0:00:20.1]} 21. Ba5 {[%clk 0:02:16.8]} 21... Rd7 {[%clk 0:00:16.5]}
22. cxb5 {[%clk 0:02:14]} 22... axb5 {[%clk 0:00:15.8]} 23. Bb6 {[%clk
0:02:09.9]} 23... Bg5+ {[%clk 0:00:11.3]} 24. Kb1 {[%clk 0:02:05.2]} 24... h5
{[%clk 0:00:11.9]} 25. Nf6+ {[%clk 0:02:04.5]} 25... Bxf6 {[%clk 0:00:10.9]} 26.
Rxd7 {[%clk 0:02:05]} 26... Re8 {[%clk 0:00:10.3]} 27. Nc5 {[%clk 0:02:02.8]}
27... e4 {[%clk 0:00:09.6]} 28. Nxe4 {[%clk 0:02:02.5]} 28... Ne5 {[%clk
0:00:08.2]} 29. Rd5 {[%clk 0:01:53.8]} 1-0

[Event "Late-Titled-Tuesday-Blitz-March-12-2024"]
[Site "Chess.com"]
[Date "2024.03.12"]
[Round "7"]
[White "GotCheeseCheckers"]
[Black "BeanScreen"]
[Result "1-0"]
[WhiteElo "2509"]
[BlackElo "2730"]
[TimeControl "180+1"]
[EndTime "15:15:05 PDT"]
[Termination "GotCheeseCheckers won by checkmate"]

1. a3 {[%clk 0:02:56.3]} 1... d5 {[%clk 0:02:59]} 2. h3 {[%clk 0:02:56.5]} 2...
e5 {[%clk 0:02:58.8]} 3. Nf3 {[%clk 0:02:56.9]} 3... e4 {[%clk 0:02:58.8]} 4.
Nd4 {[%clk 0:02:57.3]} 4... Nf6 {[%clk 0:02:56.7]} 5. d3 {[%clk 0:02:57.6]} 5...
Bc5 {[%clk 0:02:44]} 6. e3 {[%clk 0:02:54.2]} 6... O-O {[%clk 0:02:42.6]} 7. Be2
{[%clk 0:02:45.9]} 7... Re8 {[%clk 0:02:33.3]} 8. O-O {[%clk 0:02:45.5]} 8...
Nbd7 {[%clk 0:02:25]} 9. c4 {[%clk 0:02:45.7]} 9... c6 {[%clk 0:02:24.1]} 10.
Nc3 {[%clk 0:02:44.1]} 10... Ne5 {[%clk 0:02:15.4]} 11. cxd5 {[%clk 0:02:39]}
11... cxd5 {[%clk 0:02:14.6]} 12. dxe4 {[%clk 0:02:39.7]} 12... dxe4 {[%clk
0:02:14]} 13. b4 {[%clk 0:02:40.3]} 13... Bxd4 {[%clk 0:01:54.5]} 14. exd4
{[%clk 0:02:39.9]} 14... Nd3 {[%clk 0:01:44.5]} 15. Bxd3 {[%clk 0:02:35.4]}
15... Qxd4 {[%clk 0:01:43.6]} 16. Bb5 {[%clk 0:02:21.1]} 16... Qxc3 {[%clk
0:01:40.6]} 17. Bxe8 {[%clk 0:02:13.1]} 17... Qxa1 {[%clk 0:01:39.4]} 18. Qd8
{[%clk 0:02:13.6]} 18... Bd7 {[%clk 0:00:13.9]} 19. Qxa8 {[%clk 0:02:00.7]}
19... Nxe8 {[%clk 0:00:05.9]} 20. Qxb7 {[%clk 0:01:59.4]} 20... Be6 {[%clk
0:00:04.2]} 21. Qb8 {[%clk 0:01:54.2]} 21... Bd7 {[%clk 0:00:03.3]} 22. Qxa7
{[%clk 0:01:50.5]} 22... Bb5 {[%clk 0:00:03.9]} 23. Qb8 {[%clk 0:01:48.2]} 23...
h6 {[%clk 0:00:02.7]} 24. Qxb5 {[%clk 0:01:48.3]} 24... Nf6 {[%clk 0:00:02.6]}
25. Bg5 {[%clk 0:01:45.6]} 25... Qb2 {[%clk 0:00:02.1]} 26. Bxf6 {[%clk
0:01:45.2]} 26... Qxf6 {[%clk 0:00:03]} 27. Qd5 {[%clk 0:01:42.8]} 27... e3
{[%clk 0:00:02.8]} 28. fxe3 {[%clk 0:01:42.5]} 28... Qc3 {[%clk 0:00:03]} 29.
Qd8+ {[%clk 0:01:41.7]} 29... Kh7 {[%clk 0:00:03.1]} 30. Qd4 {[%clk 0:01:42.4]}
30... Qxa3 {[%clk 0:00:02.8]} 31. Rxf7 {[%clk 0:01:42.9]} 31... Qa2 {[%clk
0:00:02.7]} 32. Qxg7# {[%clk 0:01:42]} 1-0